bitfinex-derivatives/quotes_BTCF0:USTF0_20251208
["timestamp","ask_amount","ask_price","bid_price","bid_amount"]
[1765163850439,0.23153,91252.0,91251.0,0.3837379]
[1765163851131,0.23153,91252.0,91251.0,0.4655379]
[1765163855137,0.23153,91252.0,91251.0,0.3837379]
[1765163855338,0.23153,91252.0,91251.0,0.4655379]
[1765163857235,0.23153,91252.0,91251.0,0.293]
[1765163857434,0.17139,91243.0,91242.0,0.09090328]
[1765163857643,0.17139,91243.0,91242.0,0.60270328]
[1765163858745,0.17239,91243.0,91242.0,0.60470328]
[1765163859439,0.17639,91243.0,91242.0,0.61670328]
[1765163859748,0.005,91243.0,91242.0,0.61670328]
[1765163863451,0.09281,91243.0,91242.0,0.61670328]
[1765163863651,0.17618,91243.0,91242.0,0.61670328]
[1765163866251,0.17618,91243.0,91242.0,0.13512328]
[1765163866850,0.17618,91243.0,91242.0,0.45512328]
[1765163867052,0.17618,91243.0,91242.0,0.61784328]
[1765163868248,0.005,91243.0,91242.0,0.61784328]
[1765163869348,0.17353,91243.0,91242.0,0.61784328]
[1765163872847,0.17353,91243.0,91242.0,0.45512328]
[1765163873458,0.17353,91243.0,91242.0,0.04512328]
[1765163874847,0.17353,91243.0,91242.0,0.02512328]
[1765163875052,0.17353,91243.0,91242.0,0.52793328]
[1765163875247,0.17353,91243.0,91242.0,0.60784328]
[1765163875559,0.005,91243.0,91242.0,0.60784328]
[1765163879258,0.09016,91243.0,91242.0,0.60784328]
[1765163879758,0.005,91243.0,91242.0,0.60784328]
[1765163880454,0.00075757,91243.0,91242.0,0.60784328]
[1765163880657,0.00016438,91254.0,91253.0,0.1736776]
[1765163880959,0.05103,91272.0,91271.0,0.1736755]
[1765163880960,0.21956,91272.0,91271.0,0.1736755]
[1765163881152,0.24475235,91272.0,91271.0,0.5336755]
[1765163882559,0.24975235,91272.0,91271.0,0.5446755]
[1765163883258,0.22456,91272.0,91271.0,0.5446755]
[1765163885557,0.005,91272.0,91271.0,0.5446755]
[1765163885746,0.00016438,91281.0,91280.0,0.1601344]
[1765163885747,0.07387438,91281.0,91280.0,0.1601344]
[1765163885949,0.15085438,91281.0,91280.0,0.5201344]
[1765163886350,0.00016438,91281.0,91280.0,0.5201344]
[1765163887054,0.07398387,91286.0,91285.0,0.1601338]
[1765163887257,0.07398387,91286.0,91285.0,1.0189738]
[1765163887456,0.15096387,91286.0,91285.0,1.0189738]
[1765163888255,0.15396387,91286.0,91285.0,1.0309738]
[1765163888859,0.15496387,91286.0,91285.0,1.0349738]
[1765163889250,0.15496387,91286.0,91285.0,0.5261338]
[1765163889448,0.15496387,91286.0,91285.0,0.9418538]
[1765163896963,0.15496387,91286.0,91285.0,0.146]
[1765163897958,0.15496387,91286.0,91285.0,0.016]
[1765163898360,0.14618,91270.0,91269.0,0.0866956]
[1765163898665,0.14618,91270.0,91265.0,0.0109561]
[1765163898965,0.19291,91266.0,91265.0,0.0109561]
[1765163899959,0.14618,91264.0,91263.0,0.47728]
[1765163900160,0.14618,91264.0,91263.0,0.84728]
[1765163900360,0.14618,91264.0,91263.0,0.92302]
[1765163900567,0.14618,91264.0,91263.0,1.00106]
[1765163900768,0.14618,91264.0,91263.0,0.52378]
[1765163901473,0.14718,91264.0,91263.0,0.53078]
[1765163901856,0.15518,91264.0,91263.0,0.53178]
[1765163902569,0.08311,91264.0,91263.0,0.53178]
[1765163902972,0.15518,91264.0,91263.0,0.53178]
[1765163903471,0.009,91264.0,91263.0,0.53178]
[1765163903969,0.15518,91264.0,91263.0,0.53178]
[1765163906774,0.15518,91264.0,91263.0,0.96254]
[1765163907163,0.15518,91264.0,91263.0,1.04058]
[1765163908975,0.009,91264.0,91263.0,1.04058]
[1765163909475,0.00016438,91277.0,91276.0,0.1647349]
[1765163909660,0.00016438,91277.0,91276.0,1.1034949]
[1765163910068,0.04673,91296.0,91285.0,0.1647338]
[1765163910369,0.04673,91296.0,91285.0,0.5247338]
[1765163911172,0.00010821,91295.0,91285.0,0.5247338]
[1765163912275,0.00010821,91295.0,91285.0,0.5287338]
[1765163912476,0.00127387,91286.0,91285.0,0.5287338]
[1765163912678,0.02027387,91286.0,91285.0,0.5307338]
[1765163915382,0.19291,91322.0,91321.0,0.15303]
[1765163916575,0.20191,91322.0,91321.0,0.15403]
[1765163916765,0.24091,91322.0,91321.0,0.15703]
[1765163917567,0.24091,91322.0,91321.0,0.55703]
[1765163918471,0.24091,91322.0,91321.0,0.004]
[1765163930684,0.26570543,91322.0,91321.0,0.004]
[1765163930983,0.52570543,91322.0,91321.0,0.004]
[1765163931382,0.26570543,91322.0,91321.0,0.004]
[1765163931584,0.35570543,91322.0,91321.0,0.004]
[1765163933978,0.26570543,91322.0,91321.0,0.004]
[1765163934787,0.26570543,91322.0,91321.0,0.06664]
[1765163935186,0.26570543,91322.0,91321.0,0.12928]
[1765163935990,0.26570543,91322.0,91321.0,0.004]
[1765163937891,0.24091,91322.0,91321.0,0.004]
[1765163938291,0.26577843,91322.0,91321.0,0.004]
[1765163939782,0.35577843,91322.0,91321.0,0.004]
[1765163939982,0.13233,91313.0,91312.0,0.04815074]
[1765163940182,0.13233,91313.0,91312.0,0.00016429]
[1765163940380,0.15722434,91313.0,91312.0,0.00016429]
[1765163941889,0.18522434,91313.0,91312.0,0.00116429]
[1765163942086,0.18522434,91313.0,91312.0,0.01211479]
[1765163942287,0.18522434,91313.0,91312.0,0.00116429]
[1765163942494,0.19322434,91313.0,91312.0,0.00216429]
[1765163943884,0.19322434,91313.0,91312.0,0.01311479]
[1765163944096,0.19322434,91313.0,91312.0,0.51055479]
[1765163944297,0.16833,91313.0,91312.0,0.51055479]
[1765163945293,0.19326463,91313.0,91312.0,0.51055479]
[1765163946501,0.19326463,91313.0,91312.0,0.49960429]
[1765163948003,0.19326463,91313.0,91312.0,0.00216429]
[1765163949202,0.45326463,91313.0,91312.0,0.00216429]
[1765163949398,0.0109507,91311.0,91293.0,0.0109528]
[1765163949604,0.13233,91285.0,91284.0,0.11178]
[1765163949904,0.13233,91285.0,91284.0,0.47178]
[1765163950103,0.13233,91285.0,91284.0,0.48433133]
[1765163951204,0.17194399,91294.0,91293.0,0.11278]
[1765163951508,0.19690378,91294.0,91293.0,0.51278]
[1765163951702,0.19690378,91294.0,91293.0,0.51178]
[1765163952399,0.08895378,91294.0,91293.0,0.51178]
[1765163952601,0.04612378,91294.0,91293.0,0.51178]
[1765163952906,0.02716399,91294.0,91293.0,0.51278]
[1765163953605,0.19190399,91294.0,91293.0,0.51278]
[1765163953804,0.09035399,91294.0,91293.0,0.51278]
[1765163954602,0.19190399,91294.0,91293.0,0.51278]
[1765163968723,0.19190399,91294.0,91293.0,0.001]
[1765163969210,0.21684638,91294.0,91293.0,0.001]
[1765163969610,0.19190399,91294.0,91293.0,0.001]
[1765163971020,0.21684815,91294.0,91293.0,0.001]
[1765163971216,0.21684826,91294.0,91293.0,0.001]
[1765163971917,0.22780096,91294.0,91293.0,0.001]
[1765163972119,0.21684826,91294.0,91293.0,0.001]
[1765163980421,0.21684826,91294.0,91293.0,0.09854]
[1765163981713,0.21684826,91294.0,91293.0,0.49854]
[1765163985720,0.19190399,91294.0,91293.0,0.49854]
[1765163985919,0.2171038,91294.0,91293.0,0.49854]
[1765163986120,0.19190399,91294.0,91293.0,0.49854]
[1765163986427,0.21710325,91294.0,91293.0,0.49854]
[1765163986725,0.05865845,91312.0,91293.0,0.49854]
[1765163986726,0.16102,91315.0,91314.0,0.05914]
[1765163986924,0.18621536,91315.0,91314.0,0.4800903]
[1765163987125,0.02519536,91315.0,91314.0,0.4800903]
[1765163987330,0.16102,91325.0,91324.0,0.05914]
[1765163987625,0.18619635,91325.0,91324.0,0.05914]
[1765163988228,0.18619635,91325.0,91324.0,0.42914]
[1765163988229,0.16102,91325.0,91324.0,0.42914]
[1765163988534,0.03829,91338.0,91337.0,0.12338]
[1765163988535,0.12273,91338.0,91337.0,0.12338]
[1765163988826,0.14788589,91338.0,91337.0,0.12338]
[1765163989228,0.12273,91338.0,91337.0,0.53338]
[1765163989530,0.06261,91338.0,91337.0,0.53338]
[1765163989721,0.12273,91338.0,91337.0,0.53338]
[1765163989917,0.12273,91338.0,91337.0,0.53438]
[1765163990228,0.03829,91350.0,91349.0,0.12338]
[1765163990229,0.12273,91350.0,91349.0,0.12338]
[1765163990524,0.16102,91350.0,91349.0,0.13]
[1765163990732,0.12273,91344.0,91343.0,0.6430467]
[1765163990933,0.12273,91344.0,91343.0,1.0630467]
[1765163991229,0.12273,91344.0,91343.0,1.1029267]
[1765163991431,0.03829,91357.0,91356.0,0.12338]
[1765163991432,0.12273,91357.0,91356.0,0.12338]
[1765163991622,0.1861055,91357.0,91356.0,0.12338]
[1765163991820,0.12273,91348.0,91347.0,0.19538293]
[1765163992024,0.12273,91348.0,91347.0,0.54338]
[1765163993426,0.12773,91348.0,91347.0,0.54338]
[1765163994028,0.12773,91348.0,91347.0,0.15338]
[1765163995523,0.03829,91343.0,91342.0,0.12338]
[1765163995834,0.16102,91343.0,91342.0,0.17338]
[1765163996435,0.12273,91341.0,91340.0,0.00016429]
[1765163997835,0.12273,91341.0,91340.0,0.06531429]
[1765163998037,0.12273,91341.0,91340.0,0.12950429]
[1765163998635,0.12573,91341.0,91340.0,0.12950429]
[1765163999333,0.12573,91341.0,91340.0,0.00016429]
[1765164002135,0.38573,91341.0,91340.0,0.00016429]
[1765164002531,0.13317,91331.0,91330.0,0.04847722]
[1765164002731,0.13317,91331.0,91328.0,0.0109485]
[1765164002732,0.17384,91329.0,91328.0,0.0745385]
[1765164003941,0.17384,91329.0,91328.0,0.1522885]
[1765164004143,0.13317,91329.0,91328.0,0.5422885]
[1765164005049,0.13317,91329.0,91328.0,0.5472885]
[1765164005244,0.13317,91329.0,91328.0,0.5352885]
[1765164005552,0.13317,91329.0,91328.0,0.5302885]
[1765164005749,0.13317,91329.0,91328.0,0.5322885]
[1765164005947,0.13317,91329.0,91328.0,0.5362885]
[1765164006642,0.06782396,91338.0,91337.0,0.12934]
[1765164006849,0.13333396,91338.0,91337.0,0.52934]
[1765164007945,0.13333396,91338.0,91337.0,0.08]
[1765164007946,0.13633396,91338.0,91337.0,0.08]
[1765164008149,0.13633396,91338.0,91328.0,0.07200293]
[1765164008150,0.16134,91329.0,91328.0,0.07200293]
[1765164008348,0.16134,91329.0,91328.0,0.12934]
[1765164008655,0.13317,91320.0,91319.0,0.13575712]
[1765164008856,0.13317,91320.0,91319.0,0.08375419]
[1765164009160,0.13317,91320.0,91319.0,0.14950419]
[1765164009347,0.13317,91320.0,91319.0,0.12950419]
[1765164009554,0.13317,91320.0,91319.0,0.15950419]
[1765164009754,0.13317,91320.0,91319.0,0.39950419]
[1765164009944,0.13317,91320.0,91319.0,0.41550419]
[1765164011351,0.13317,91320.0,91319.0,0.42050419]
[1765164011651,0.06766,91337.0,91336.0,0.17003]
[1765164012039,0.13503,91337.0,91336.0,0.17003]
[1765164012244,0.13503,91337.0,91336.0,0.06359]
[1765164012451,0.13503,91337.0,91336.0,0.12952]
[1765164013445,0.15997127,91337.0,91336.0,0.12952]
[1765164013848,0.15997127,91337.0,91319.0,0.00016419]
[1765164013849,0.03769,91322.0,91319.0,0.00016419]
[1765164014046,0.03769,91329.0,91319.0,0.12885419]
[1765164014047,0.13594,91320.0,91319.0,0.12885419]
[1765164014257,0.13594,91320.0,91319.0,0.52885419]
[1765164015159,0.13594,91320.0,91319.0,0.54485419]
[1765164015552,0.13594,91329.0,91328.0,0.16737]
[1765164015749,0.16090876,91329.0,91328.0,0.58737]
[1765164015949,0.16090876,91329.0,91328.0,0.36737]
[1765164016146,0.16090876,91329.0,91328.0,0.32869]
[1765164016755,0.16090876,91329.0,91328.0,0.14069]
[1765164017059,0.16090876,91329.0,91328.0,0.52069]
[1765164017861,0.16390876,91329.0,91328.0,0.52069]
[1765164018162,0.16390876,91329.0,91328.0,0.50869]
[1765164018563,0.16090876,91329.0,91328.0,0.25869]
[1765164018763,0.16390876,91329.0,91328.0,0.12869]
[1765164019456,0.02796876,91329.0,91328.0,0.50869]
[1765164021162,0.09353876,91329.0,91328.0,0.50869]
[1765164021365,0.02496876,91329.0,91328.0,0.51269]
[1765164021662,0.02496876,91329.0,91328.0,0.52469]
[1765164022964,0.09353876,91329.0,91328.0,0.52469]
[1765164024263,0.16090876,91329.0,91328.0,0.52469]
[1765164029264,0.09353876,91329.0,91328.0,0.52469]
[1765164029669,0.02496876,91329.0,91328.0,0.52469]
[1765164030968,0.00016396,91338.0,91337.0,0.12869]
[1765164031172,0.00016396,91338.0,91337.0,0.50869]
[1765164031370,0.09374387,91338.0,91337.0,0.50869]
[1765164031874,0.09374387,91338.0,91337.0,0.5196375]
[1765164032569,0.16111387,91338.0,91337.0,0.5196375]
[1765164033056,0.16511387,91338.0,91337.0,0.5196375]
[1765164036674,0.20280387,91338.0,91337.0,0.09276]
[1765164036876,0.02917387,91338.0,91337.0,0.50869]
[1765164037170,0.16511387,91338.0,91337.0,0.50869]
[1765164037373,0.02917387,91338.0,91337.0,0.50869]
[1765164037562,0.00416396,91338.0,91337.0,0.50869]
[1765164040284,0.14010396,91338.0,91337.0,0.50869]
[1765164040771,0.14010396,91338.0,91337.0,0.20276]
[1765164040772,0.17779396,91338.0,91337.0,0.20276]
[1765164040972,0.16511165,91338.0,91337.0,0.55869]
[1765164041374,0.16511165,91338.0,91337.0,0.19869]
[1765164041775,0.18977165,91338.0,91337.0,0.19869]
[1765164042677,0.18977165,91338.0,91337.0,0.07]
[1765164042871,0.1229,91327.0,91326.0,0.1375788]
[1765164043072,0.1229,91327.0,91326.0,0.6074988]
[1765164043475,0.02882396,91338.0,91333.0,0.010948]
[1765164043675,0.12706396,91338.0,91337.0,0.1375775]
[1765164043989,0.15207512,91338.0,91337.0,0.5275775]
[1765164044279,0.15207512,91338.0,91337.0,0.1375775]
[1765164044681,0.14807512,91338.0,91337.0,0.1375775]
[1765164044876,0.18837512,91338.0,91337.0,0.12663]
[1765164045278,0.18837512,91338.0,91329.0,0.1375785]
[1765164045279,0.1229,91330.0,91329.0,0.1375785]
[1765164045574,0.14792054,91330.0,91329.0,0.1775785]
[1765164045779,0.14792054,91330.0,91329.0,0.5075785]
[1765164046381,0.14792054,91330.0,91329.0,0.5115785]
[1765164047072,0.02502054,91330.0,91329.0,0.5115785]
[1765164047269,0.02502054,91330.0,91329.0,0.5235785]
[1765164048675,0.08728054,91330.0,91329.0,0.5235785]
[1765164050287,0.02502054,91330.0,91329.0,0.5235785]
[1765164051986,0.08728054,91330.0,91329.0,0.5235785]
[1765164052285,0.02502054,91330.0,91329.0,0.5235785]
[1765164053286,0.08728054,91330.0,91329.0,0.5235785]
[1765164053685,0.14792054,91330.0,91329.0,0.5235785]
[1765164053994,0.14792054,91330.0,91329.0,0.51263]
[1765164055388,0.14792054,91330.0,91329.0,0.24863]
[1765164055689,0.15092054,91330.0,91329.0,0.24863]
[1765164056183,0.15092054,91330.0,91329.0,0.1375785]
[1765164056389,0.15092054,91330.0,91329.0,0.5705785]
[1765164056885,0.15092054,91330.0,91329.0,0.5675785]
[1765164057580,0.15092054,91330.0,91329.0,0.5695785]
[1765164058192,0.14792054,91330.0,91329.0,0.5695785]
[1765164059581,0.14792054,91330.0,91329.0,0.5705785]
[1765164059983,0.14792054,91330.0,91329.0,0.5675785]
[1765164060283,0.14792054,91330.0,91329.0,0.5715785]
[1765164061982,0.02502054,91330.0,91329.0,0.5715785]
[1765164062186,0.00016396,91338.0,91337.0,0.1204575]
[1765164062383,0.00016396,91338.0,91337.0,0.5404575]
[1765164063287,0.17028845,91354.0,91353.0,0.10951]
[1765164063483,0.11163,91354.0,91353.0,0.10951]
[1765164064589,0.17028845,91364.0,91363.0,0.10951]
[1765164064891,0.11190363,91366.0,91365.0,0.10951]
[1765164065087,0.11190363,91366.0,91365.0,0.41951]
[1765164066093,0.11990363,91366.0,91365.0,0.11051]
[1765164067189,0.11990363,91366.0,91365.0,0.001]
[1765164067579,0.11990363,91366.0,91365.0,0.05478]
[1765164068196,0.11990363,91366.0,91365.0,0.001]
[1765164070795,0.11990363,91366.0,91365.0,0.05478]
[1765164070987,0.11990363,91366.0,91365.0,0.11051]
[1765164071298,0.00827363,91366.0,91365.0,0.46051]
[1765164072383,0.07821127,91385.0,91365.0,0.46051]
[1765164072384,0.05865845,91389.0,91382.0,0.11165]
[1765164072582,0.05865845,91389.0,91388.0,0.11165]
[1765164072583,0.10905,91389.0,91388.0,0.11165]
[1765164073898,0.11905,91389.0,91388.0,0.11165]
[1765164074194,0.14353878,91389.0,91388.0,0.11165]
[1765164074598,0.14053878,91389.0,91388.0,0.11165]
[1765164077785,0.11605,91389.0,91388.0,0.11165]
[1765164080803,0.10905,91384.0,91383.0,0.122592]
[1765164081796,0.10905,91384.0,91383.0,0.11165]
[1765164081991,0.10905,91377.0,91376.0,0.11181419]
[1765164082207,0.10905,91377.0,91376.0,0.16181419]
[1765164082403,0.11605,91389.0,91388.0,0.11165]
[1765164082706,0.10905,91389.0,91388.0,0.11165]
[1765164083502,0.14248,91399.0,91398.0,0.11165]
[1765164083700,0.10905,91390.0,91389.0,0.18995805]
[1765164083899,0.10905,91390.0,91389.0,0.11165]
[1765164084694,0.10905,91380.0,91379.0,0.18995925]
[1765164084910,0.10905,91380.0,91379.0,0.3325925]
[1765164086311,0.10905,91380.0,91379.0,0.1225925]
[1765164086609,0.11505,91380.0,91379.0,0.1225925]
[1765164089622,0.006,91380.0,91379.0,0.5325925]
[1765164091405,0.05759,91391.0,91390.0,0.1225911]
[1765164091603,0.05759,91391.0,91390.0,0.3225911]
[1765164091912,0.10932351,91406.0,91405.0,0.11165]
[1765164092117,0.13381842,91406.0,91405.0,0.11165]
[1765164092510,0.13381842,91406.0,91405.0,0.05575]
[1765164092899,0.10905,91397.0,91396.0,0.17918094]
[1765164093100,0.13354491,91397.0,91396.0,0.11181419]
[1765164093309,0.02449491,91397.0,91396.0,0.11181419]
[1765164093613,0.13356245,91405.0,91404.0,0.11165]
[1765164093913,0.13356241,91405.0,91404.0,0.11165]
[1765164096203,0.14056241,91405.0,91404.0,0.11165]
[1765164097212,0.40056241,91405.0,91404.0,0.05575]
[1765164097413,0.10905,91397.0,91396.0,0.11181419]
[1765164097611,0.13356241,91397.0,91396.0,0.11181419]
[1765164098508,0.14056241,91397.0,91396.0,0.11181419]
[1765164099718,0.14056241,91397.0,91396.0,0.00016419]
[1765164099914,0.40056241,91397.0,91396.0,0.00016419]
[1765164102822,0.10433,91372.0,91371.0,0.10154]
[1765164103024,0.13687,91371.0,91360.0,0.10195919]
[1765164103323,0.13687,91371.0,91360.0,0.47195919]
[1765164103619,0.13687,91371.0,91370.0,0.0109436]
[1765164103826,0.13687,91371.0,91370.0,0.4009436]
[1765164104419,0.13687,91371.0,91370.0,0.1509436]
[1765164105120,0.13687,91371.0,91370.0,0.2809436]
[1765164105314,0.16128398,91371.0,91370.0,0.2809436]
[1765164105911,0.16428398,91371.0,91370.0,0.2809436]
[1765164106412,0.13987,91371.0,91370.0,0.2809436]
[1765164106818,0.16428201,91371.0,91370.0,0.2809436]
[1765164107322,0.13987,91371.0,91370.0,0.2809436]
[1765164107717,0.13987,91371.0,91370.0,0.0109436]
[1765164107923,0.10433,91361.0,91360.0,0.15517948]
[1765164108218,0.10433,91361.0,91360.0,0.3914992]
[1765164108821,0.10433,91361.0,91360.0,0.402444]
[1765164109019,0.10633,91361.0,91360.0,0.402444]
[1765164113118,0.002,91361.0,91360.0,0.402444]
[1765164117224,0.002,91361.0,91360.0,0.551234]
[1765164118831,0.078,91361.0,91360.0,0.551234]
[1765164119026,0.15293,91361.0,91360.0,0.551234]
[1765164119226,0.15293,91361.0,91360.0,0.477964]
[1765164119427,0.15293,91361.0,91360.0,0.551234]
[1765164120126,0.002,91361.0,91360.0,0.551234]
[1765164121032,0.15293,91361.0,91360.0,0.477964]
[1765164121235,0.15093,91357.0,91356.0,0.00016419]
[1765164121731,0.15093,91357.0,91356.0,0.50895419]
[1765164122122,0.15093,91357.0,91356.0,0.51989949]
[1765164122625,0.15193,91357.0,91356.0,0.51989949]
[1765164122932,0.001,91357.0,91356.0,0.51989949]
[1765164125328,0.1964,91357.0,91356.0,0.51989949]
[1765164125534,0.1964,91357.0,91356.0,0.00016419]
[1765164125935,0.1964,91357.0,91356.0,0.07568419]
[1765164126829,0.1964,91357.0,91356.0,0.14895419]
[1765164127331,0.1964,91357.0,91356.0,0.54895419]
[1765164128229,0.1964,91357.0,91356.0,0.26016419]
[1765164129523,0.1964,91357.0,91356.0,0.00016419]
[1765164130529,0.220783,91357.0,91356.0,0.00016419]
[1765164130729,0.1964,91357.0,91356.0,0.00016419]
[1765164131039,0.22078819,91357.0,91356.0,0.00016419]
[1765164134333,0.13928,91332.0,91331.0,0.60035739]
[1765164134540,0.13928,91332.0,91331.0,0.5406483]
[1765164134728,0.13928,91332.0,91331.0,0.2832683]
[1765164135036,0.13928,91332.0,91331.0,0.05256631]
[1765164135231,0.13928,91332.0,91331.0,0.06351461]
[1765164135432,0.13928,91332.0,91331.0,0.43186631]
[1765164136241,0.13928,91332.0,91331.0,0.45086631]
[1765164139043,0.18421,91332.0,91331.0,0.45086631]
[1765164142243,0.00016419,91341.0,91331.0,0.45086631]
[1765164142450,0.00016419,91341.0,91340.0,0.0109472]
[1765164142750,0.04493,91356.0,91355.0,0.0109454]
[1765164143053,0.11639,91356.0,91355.0,0.3609454]
[1765164143442,0.04493,91362.0,91361.0,0.0109447]
[1765164143752,0.18421,91362.0,91361.0,0.4109447]
[1765164143954,0.18421,91362.0,91361.0,0.4]
[1765164145250,0.18621,91362.0,91361.0,0.4]
[1765164146549,0.13928,91360.0,91359.0,0.0109448]
[1765164146855,0.13928,91360.0,91359.0,0.2109448]
[1765164147454,0.04693,91362.0,91359.0,0.4209448]
[1765164147647,0.04493,91362.0,91359.0,0.4209448]
[1765164147854,0.002,91360.0,91359.0,0.4209448]
[1765164148355,0.13928,91360.0,91359.0,0.4209448]
[1765164148554,0.002,91362.0,91359.0,0.4209448]
[1765164149849,0.07346,91362.0,91359.0,0.4209448]
[1765164150363,0.002,91362.0,91359.0,0.4209448]
[1765164150565,0.04493,91364.0,91363.0,0.0109444]
[1765164150869,0.04493,91364.0,91363.0,0.3609444]
[1765164151063,0.00016419,91371.0,91367.0,0.0109439]
[1765164151366,0.04493,91368.0,91367.0,0.3609439]
[1765164151565,0.00016419,91371.0,91367.0,0.3609439]
[1765164151973,0.07162419,91371.0,91367.0,0.3609439]
[1765164152265,0.13944419,91371.0,91367.0,0.3609439]
[1765164153267,0.11639,91368.0,91367.0,0.3609439]
[1765164154367,0.11939,91368.0,91367.0,0.3609439]
[1765164155872,0.18721,91368.0,91367.0,0.3609439]
[1765164158471,0.18721,91368.0,91352.0,0.00016419]
[1765164158472,0.13928,91359.0,91358.0,0.04796493]
[1765164158663,0.13928,91358.0,91357.0,0.0109451]
[1765164158864,0.13928,91358.0,91357.0,0.4109451]
[1765164160676,0.14028,91358.0,91357.0,0.4109451]
[1765164161779,0.14028,91358.0,91357.0,0.5091051]
[1765164163174,0.16727,91353.0,91352.0,0.04924419]
[1765164163374,0.16727,91353.0,91352.0,0.05016419]
[1765164163685,0.16727,91353.0,91352.0,0.28016419]
[1765164164175,0.16827,91353.0,91352.0,0.28016419]
[1765164164385,0.16827,91353.0,91352.0,0.37832419]
[1765164169586,0.16827,91353.0,91352.0,0.05016419]
[1765164170280,0.16827,91353.0,91352.0,0.00016419]
[1765164170480,0.16827,91353.0,91352.0,0.34016419]
[1765164172376,0.1792156,91353.0,91352.0,0.00016419]
[1765164175987,0.16827,91353.0,91352.0,0.00016419]
[1765164181084,0.16827,91353.0,91352.0,0.46796419]
[1765164182386,0.16827,91353.0,91352.0,0.06796419]
[1765164182989,0.16827,91353.0,91352.0,0.03406419]
[1765164183390,0.16827,91353.0,91352.0,0.00016419]
[1765164183784,0.04493,91368.0,91352.0,0.00016419]
[1765164183785,0.12863,91368.0,91367.0,0.0787439]
[1765164183983,0.05175,91380.0,91370.0,0.1777]
[1765164184180,0.17576419,91371.0,91370.0,0.5577]
[1765164185792,0.17876419,91371.0,91370.0,0.5577]
[1765164186498,0.23051419,91371.0,91370.0,0.5577]
[1765164186689,0.1756,91362.0,91361.0,0.1007846]
[1765164186889,0.1756,91362.0,91361.0,0.6186446]
[1765164187603,0.1756,91362.0,91361.0,0.3177]
[1765164187993,0.1776,91362.0,91361.0,0.3177]
[1765164188999,0.1776,91362.0,91361.0,0.22984]
[1765164189594,0.1776,91362.0,91361.0,0.14]
[1765164190500,0.1756,91359.0,91358.0,0.1886449]
[1765164190694,0.002,91362.0,91361.0,0.1777]
[1765164191000,0.002,91362.0,91361.0,0.5477]
[1765164191499,0.00016419,91371.0,91370.0,0.1777]
[1765164191700,0.00016419,91371.0,91370.0,0.5277]
[1765164192202,0.00016419,91371.0,91370.0,0.5386436]
[1765164194003,0.00316419,91371.0,91370.0,0.5386436]
[1765164194504,0.18536419,91371.0,91370.0,0.5386436]
[1765164195003,0.18536419,91371.0,91366.0,0.010944]
[1765164195004,0.1822,91367.0,91366.0,0.010944]
[1765164195191,0.1822,91367.0,91366.0,0.601054]
[1765164196405,0.1822,91367.0,91366.0,0.59011]
[1765164197304,0.1842,91367.0,91366.0,0.6010541]
[1765164197506,0.002,91367.0,91366.0,0.6010541]
[1765164198200,0.09265,91367.0,91366.0,0.6010541]
[1765164198405,0.1842,91367.0,91366.0,0.6010541]
[1765164198803,0.002,91367.0,91366.0,0.08]
[1765164198999,0.1842,91367.0,91366.0,0.08]
[1765164199603,0.1822,91359.0,91358.0,0.59808]
[1765164199907,0.1822,91359.0,91358.0,1.01808]
[1765164200101,0.1822,91359.0,91358.0,0.42]
[1765164200306,0.1822,91353.0,91352.0,0.09020419]
[1765164200509,0.1822,91353.0,91352.0,0.59027419]
[1765164201304,0.09165,91359.0,91358.0,0.18011]
[1765164201508,0.001,91359.0,91358.0,0.53011]
[1765164201806,0.09165,91359.0,91358.0,0.53011]
[1765164202010,0.09065,91359.0,91358.0,0.53011]
[1765164202398,0.1822,91368.0,91367.0,0.18011]
[1765164202710,0.20642647,91368.0,91367.0,0.55011]
[1765164202907,0.25991647,91368.0,91367.0,0.55011]
[1765164204409,0.26291647,91368.0,91367.0,0.55011]
[1765164204910,0.26291647,91368.0,91358.0,0.24750863]
[1765164204911,0.1822,91359.0,91358.0,0.24750863]
[1765164205210,0.1822,91359.0,91358.0,0.60011]
[1765164206509,0.1832,91359.0,91358.0,0.60011]
[1765164207708,0.1832,91359.0,91358.0,0.40011]
[1765164207911,0.1822,91353.0,91352.0,0.09020419]
[1765164208206,0.1822,91353.0,91352.0,0.06016419]
[1765164208915,0.1822,91353.0,91352.0,0.00016419]
[1765164209606,0.1832,91353.0,91352.0,0.00016419]
[1765164209806,0.20744571,91353.0,91352.0,0.00016419]
[1765164211611,0.001,91353.0,91352.0,0.52212419]
[1765164212306,0.1832,91353.0,91352.0,0.48027419]
[1765164218420,0.1832,91353.0,91352.0,0.00016419]
[1765164220615,0.1832,91353.0,91352.0,0.18027419]
[1765164220815,0.1832,91353.0,91352.0,0.60027419]
[1765164221319,0.001,91353.0,91352.0,0.60027419]
[1765164222120,0.09165,91353.0,91352.0,0.60027419]
[1765164223822,0.17577,91353.0,91352.0,0.18027419]
[1765164224022,0.17577,91353.0,91352.0,0.23016419]
[1765164224224,0.17577,91353.0,91352.0,0.40659419]
[1765164225627,0.001,91353.0,91352.0,0.40659419]
[1765164226436,0.001,91353.0,91352.0,0.91471419]
[1765164232929,0.17487,91353.0,91352.0,0.91471419]
[1765164233946,0.001,91353.0,91352.0,0.91471419]
[1765164240850,0.15169,91353.0,91352.0,0.91471419]
[1765164241050,0.07629,91353.0,91352.0,0.91471419]
[1765164241843,0.001,91353.0,91352.0,0.91471419]
[1765164242840,0.15169,91353.0,91352.0,0.91471419]
[1765164243948,0.15169,91353.0,91352.0,0.91467419]
[1765164245558,0.001,91353.0,91352.0,0.91467419]
[1765164250263,0.15169,91353.0,91352.0,0.73824419]
[1765164250651,0.15169,91353.0,91352.0,0.81381419]
[1765164251056,0.15169,91353.0,91352.0,0.89121419]
[1765164251257,0.15169,91353.0,91352.0,0.73824419]
[1765164252062,0.17628192,91353.0,91352.0,0.73824419]
[1765164252363,0.17628192,91353.0,91352.0,0.81381419]
[1765164252868,0.15169,91353.0,91352.0,0.81381419]
[1765164253165,0.17628355,91353.0,91352.0,0.81381419]
[1765164254466,0.17628355,91353.0,91352.0,0.89125419]
[1765164255069,0.17628355,91353.0,91352.0,0.66357419]
[1765164255854,0.17628355,91353.0,91352.0,1.01357419]